fUSD/lending_fUSD_20240409
["ID","MTS","AMOUNT","RATE_DAILY","PERIOD"]
[321991752,1712675449736,-500.0,0.00019452,2]
[321991753,1712675449745,-597.8,0.00019452,2]
[321991754,1712675449754,-500.0,0.00019452,2]
[321991755,1712675449763,-500.0,0.00019452,2]
[321991756,1712675449772,-577.33,0.00019452,2]
[321991757,1712675449781,-531.5,0.00019452,2]
[321991758,1712675449791,-640.8,0.00019452,2]
[321991759,1712675449805,-500.0,0.00019452,2]
[321991760,1712675449815,-500.0,0.00019452,2]
[321991761,1712675449825,-500.0,0.00019452,2]
[321991762,1712675449835,-677.97,0.00019452,2]
[321991763,1712675449845,-608.73,0.00019452,2]
[321991764,1712675449855,-506.19,0.00019452,2]
[321991765,1712675449865,-529.05,0.00019452,2]
[321991766,1712675449875,-1417.85,0.00019452,2]
[321991767,1712675449886,-500.0,0.00019452,2]
[321991768,1712675449897,-500.0,0.00019452,2]
[321991769,1712675449907,-500.0,0.00019452,2]
[321991770,1712675450185,-500.0,0.00019452,2]
[321991771,1712675450195,-1039.9,0.00019452,2]
[321991772,1712675450205,-500.0,0.00019452,2]
[321991773,1712675450214,-498.88823179,0.00019452,2]
[321991774,1712675450224,-1583.33,0.00019452,2]
[321991775,1712675450235,-696.51,0.00019452,2]
[321991776,1712675450246,-500.0,0.00019452,2]
[321991777,1712675450255,-939.29,0.00019452,2]
[321991778,1712675450265,-500.0,0.00019452,2]
[321991779,1712675450274,-1574.33,0.00019452,2]
[321991780,1712675450289,-1464.35,0.00019452,2]
[321991781,1712675450303,-500.0,0.00019452,2]
[321991782,1712675450313,-500.0,0.00019452,2]
[321991783,1712675450324,-500.0,0.00019452,2]
[321991784,1712675450335,-565.89,0.00019452,2]
[321991785,1712675450346,-1741.27,0.00019452,2]
[321991786,1712675450357,-902.04,0.00019452,2]
[321991787,1712675450367,-813.52,0.00019452,2]
[321991788,1712675450377,-500.0,0.00019452,2]
[321991789,1712675450387,-1259.53,0.00019452,2]
[321991790,1712675450398,-528.58,0.00019452,2]
[321991791,1712675450407,-500.0,0.00019452,2]
[321991792,1712675450423,-500.0,0.00019452,2]
[321991793,1712675450432,-1780.42,0.00019452,2]
[321991794,1712675450441,-500.0,0.00019452,2]
[321991795,1712675450451,-4260.31,0.00019452,2]
[321991796,1712675450461,-500.0,0.00019452,2]
[321991797,1712675450471,-500.0,0.00019452,2]
[321991798,1712675450481,-500.0,0.00019452,2]
[321991799,1712675450490,-826.11,0.00019452,2]
[321991800,1712675450501,-532.8,0.00019452,2]
[321991801,1712675450511,-500.0,0.00019452,2]
[321991802,1712675450521,-623.69,0.00019452,2]
[321991803,1712675450532,-584.3,0.00019452,2]
[321991804,1712675450543,-1315.43,0.00019452,2]
[321991805,1712675450557,-3173.31,0.00019452,2]
[321991806,1712675450567,-902.67,0.00019452,2]
[321991807,1712675450579,-500.0,0.00019452,2]
[321991808,1712675450589,-500.0,0.00019452,2]
[321991809,1712675450599,-1453.77,0.00019452,2]
[321991810,1712675450609,-500.0,0.00019452,2]
[321991811,1712675450618,-500.0,0.00019452,2]
[321991812,1712675450628,-1529.03,0.00019452,2]
[321991813,1712675450638,-500.0,0.00019452,2]
[321991814,1712675450648,-619.24,0.00019452,2]
[321991815,1712675450658,-500.0,0.00019452,2]
[321991816,1712675450668,-7780.97,0.00019452,2]
[321991817,1712675450678,-371.43183691,0.00019452,2]
[321991818,1712675450688,-1358.7,0.00019452,2]
[321991819,1712675450698,-2110.87,0.00019452,2]
[321991820,1712675450709,-1625.07,0.00019452,2]
[321991821,1712675450720,-1617.36,0.00019452,2]
[321991822,1712675450732,-500.0,0.00019452,2]
[321991823,1712675450743,-617.25,0.00019452,2]
[321991824,1712675450754,-4341.36,0.00019452,2]
[321991825,1712675450766,-3508.42,0.00019452,2]
[321991826,1712675450777,-747.24,0.00019452,2]
[321991827,1712675450787,-1520.95,0.00019452,2]
[321991828,1712675450802,-279.48,0.00019452,2]
[321991829,1712675450813,-865.38,0.00019452,2]
[321991830,1712675450823,-500.0,0.00019452,2]
[321991831,1712675450834,-23565.43,0.00019452,2]
[321991832,1712675450845,-2426.37,0.00019452,2]
[321991833,1712675450855,-854.87,0.00019452,2]
[321991834,1712675450866,-500.0,0.00019452,2]
[321991835,1712675450876,-500.0,0.00019452,2]
[321991836,1712675450887,-1608.5,0.00019452,2]
[321991837,1712675450898,-1328.25,0.00019452,2]
[321991838,1712675450909,-801.11,0.00019452,2]
[321991839,1712675450920,-500.0,0.00019452,2]
[321991840,1712675450931,-532.86,0.00019452,2]
[321991841,1712675450942,-3359.3,0.00019452,2]
[321991842,1712675450952,-500.0,0.00019452,2]
[321991843,1712675450963,-854.73,0.00019452,2]
[321991844,1712675450973,-2855.7,0.00019452,2]
[321991845,1712675450983,-500.0,0.00019452,2]
[321991846,1712675450993,-709.14,0.00019452,2]
[321991847,1712675451002,-2296.4,0.00019452,2]
[321991848,1712675451012,-3246.01,0.00019452,2]
[321991849,1712675451022,-500.0,0.00019452,2]
[321991850,1712675451032,-976.72,0.00019452,2]
[321991851,1712675451042,-564.45,0.00019452,2]
[321991852,1712675451059,-1135.51,0.00019452,2]
[321991853,1712675451069,-769.27,0.00019452,2]
[321991854,1712675451079,-1309.65,0.00019452,2]
[321991855,1712675451089,-1260.97,0.00019452,2]
[321991856,1712675451099,-1106.89,0.00019452,2]
[321991857,1712675451110,-890.42,0.00019452,2]
[321991858,1712675451119,-8330.3,0.00019452,2]
[321991859,1712675451130,-976.31,0.00019452,2]
[321991860,1712675451140,-500.0,0.00019452,2]
[321991861,1712675451150,-985.62,0.00019452,2]
[321991862,1712675451160,-500.0,0.00019452,2]
[321991863,1712675451170,-1691.49,0.00019452,2]
[321991864,1712675451180,-500.0,0.00019452,2]
[321991865,1712675451191,-1419.15,0.00019452,2]
[321991866,1712675451202,-1121.45,0.00019452,2]
[321991867,1712675451213,-22600.57,0.00019452,2]
[321991868,1712675451236,-500.0,0.00019452,2]
[321991869,1712675451251,-500.0,0.00019452,2]
[321991870,1712675451262,-500.0,0.00019452,2]
[321991871,1712675451275,-329.93642124,0.00019452,2]
[321991872,1712675451287,-506.88,0.00019452,2]
[321991873,1712675451305,-500.0,0.00019452,2]
[321991874,1712675451317,-1023.73,0.00019452,2]
[321991875,1712675451331,-1714.47,0.00019452,2]
[321991876,1712675451342,-909.75,0.00019452,2]
[321991877,1712675451354,-1814.08,0.00019452,2]
[321991878,1712675451365,-772.21,0.00019452,2]
[321991879,1712675451376,-500.0,0.00019452,2]
[321991880,1712675451387,-1148.04,0.00019452,2]
[321991881,1712675451397,-1944.62,0.00019452,2]
[321991882,1712675451408,-3153.27,0.00019452,2]
[321991883,1712675451419,-27189.57,0.00019452,2]
[321991884,1712675451430,-1427.61,0.00019452,2]
[321991885,1712675451440,-500.0,0.00019452,2]
[321991886,1712675451449,-1903.46,0.00019452,2]
[321991887,1712675451459,-2617.0,0.00019452,2]
[321991888,1712675451470,-2382.21,0.00019452,2]
[321991889,1712675451480,-909.48,0.00019452,2]
[321991890,1712675451490,-1365.53,0.00019452,2]
[321991891,1712675451500,-5457.25,0.00019452,2]
[321991892,1712675451510,-5265.93,0.00019452,2]
[321991893,1712675451520,-500.0,0.00019452,2]
[321991894,1712675451530,-2322.11,0.00019452,2]
[321991895,1712675451540,-500.0,0.00019452,2]
[321991896,1712675451556,-500.0,0.00019452,2]
[321991897,1712675451566,-1341.58,0.00019452,2]
[321991898,1712675451576,-1108.14,0.00019452,2]
[321991899,1712675451587,-500.0,0.00019452,2]
[321991900,1712675451597,-2359.31,0.00019452,2]
[321991901,1712675451607,-1923.66,0.00019452,2]
[321991902,1712675451617,-500.0,0.00019452,2]
[321991903,1712675451627,-10332.28,0.00019452,2]
[321991904,1712675451636,-500.0,0.00019452,2]
[321991905,1712675451646,-2859.52,0.00019452,2]
[321991906,1712675451657,-500.0,0.00019452,2]
[321991907,1712675451667,-2848.51,0.00019452,2]
[321991908,1712675451677,-846.44,0.00019452,2]
[321991909,1712675451687,-3804.41,0.00019452,2]
[321991910,1712675451696,-3557.01,0.00019452,2]
[321991911,1712675451706,-557.17,0.00019452,2]
[321991912,1712675451717,-2317.69,0.00019452,2]
[321991913,1712675451727,-734.99,0.00019452,2]
[321991914,1712675451738,-7208.0,0.00019452,2]
[321991915,1712675451748,-500.0,0.00019452,2]
[321991916,1712675451759,-1986.32,0.00019452,2]
[321991917,1712675451771,-1917.08,0.00019452,2]
[321991918,1712675451781,-933.5,0.00019452,2]
[321991919,1712675451790,-626.25,0.00019452,2]
[321991920,1712675451805,-567.99,0.00019452,2]
[321991921,1712675451815,-4868.84,0.00019452,2]
[321991922,1712675451825,-666.60630156,0.00019452,2]
[321991923,1712675451861,-696.92,0.00019452,2]
[321991924,1712675451881,-1161.10369844,0.00019452,2]
[321991925,1712675451891,-1794.21,0.00019452,2]
[321991926,1712675451901,-1713.0,0.00019452,2]
[321991927,1712675451910,-18164.51,0.00019452,2]
[321991928,1712675451920,-928.85,0.00019452,2]
[321991929,1712675451931,-500.0,0.00019452,2]
[321991930,1712675451941,-500.0,0.00019452,2]
[321991931,1712675451950,-1057.5,0.00019452,2]
[321991932,1712675451960,-1078.44,0.00019452,2]
[321991933,1712675451972,-500.0,0.00019452,2]
[321991934,1712675451981,-1662.24,0.00019452,2]
[321991935,1712675451991,-828.85,0.00019452,2]
[321991936,1712675452000,-111.29630156,0.00019452,2]
[321991937,1712675452771,-388.70369844,0.00019452,2]
[321991938,1712675452781,-1383.61,0.00019452,2]
[321991939,1712675452789,-1488.32,0.00019452,2]
[321991940,1712675452798,-2733.26999011,0.00019452,2]
[321991941,1712675452810,-1300.05000989,0.00019452,2]
[321991942,1712675452819,-733.66,0.00019452,2]
[321991943,1712675452829,-558.98,0.00019452,2]
[321991944,1712675452839,-500.0,0.00019452,2]
[321991945,1712675452849,-913.34,0.00019452,2]
[321991946,1712675452858,-689.72,0.00019452,2]
[321991947,1712675452868,-1248.07,0.00019452,2]
[321991948,1712675452878,-1196.64,0.00019452,2]
[321991949,1712675452888,-464.13699124,0.00019452,2]
[321991950,1712675452900,-2445.8,0.00019452,2]
[321991951,1712675452911,-2463.48300876,0.00019452,2]
[321991952,1712675452921,-8430.92,0.00019452,2]
[321991953,1712675452930,-7998.87078792,0.00019452,2]
[321991954,1712675453193,-3454.14921208,0.00019452,2]
[321991955,1712675453202,-1110.62,0.00019452,2]
[321991956,1712675453211,-863.69,0.00019452,2]
[321991957,1712675453220,-500.0,0.00019452,2]
[321991958,1712675453229,-500.0,0.00019452,2]
[321991959,1712675453243,-500.0,0.00019452,2]
[321991960,1712675453252,-1162.36,0.00019452,2]
[321991961,1712675453262,-1798.52,0.00019452,2]
[321991962,1712675453271,-1753.46,0.00019452,2]
[321991963,1712675453282,-500.0,0.00019452,2]
[321991964,1712675453291,-1726.06,0.00019452,2]
[321991965,1712675453301,-4570.93,0.00019452,2]
[321991966,1712675453310,-500.0,0.00019452,2]
[321991967,1712675453323,-353.68,0.00019452,2]
[321991968,1712675453333,-500.0,0.00019452,2]
[321991969,1712675453343,-500.0,0.00019452,2]
[321991970,1712675453352,-500.0,0.00019452,2]
[321991971,1712675453363,-1530.46,0.00019452,2]
[321991972,1712675453372,-4391.04,0.00019452,2]
[321991973,1712675453383,-500.0,0.00019452,2]
[321991974,1712675453393,-1868.72,0.00019452,2]
[321991975,1712675453404,-7587.36,0.00019452,2]
[321991976,1712675453413,-361.07,0.00019452,2]
[321991977,1712675453422,-2577.59,0.00019452,2]
[321991978,1712675453432,-500.0,0.00019452,2]
[321991979,1712675453441,-4081.1,0.00019452,2]
[321991980,1712675453450,-500.0,0.00019452,2]
[321991981,1712675453460,-704.54,0.00019452,2]
[321991982,1712675453470,-500.0,0.00019452,2]
[321991983,1712675453479,-2582.33,0.00019452,2]
[321991984,1712675453489,-3302.42445289,0.00019456,2]
[321991985,1712675453499,-2436.13415346,0.00019468,2]
[321991986,1712675453508,-1467.03775105,0.00019524,2]
[321991987,1712675453519,-150.0,0.00019525,4]
[321991988,1712675453529,-3906.46814454,0.00019539,2]
[321991989,1712675453538,-570.59194654,0.00019542,2]
[321991990,1712675453547,-1244.72417078,0.00019542,2]
[321991991,1712675453558,-155.8559771,0.00019542,2]
[321991992,1712675453568,-155.09101632,0.00019542,2]
[321991993,1712675453578,-157.40175635,0.00019542,2]
[321991994,1712675453588,-155.0,0.00019542,2]
[321991995,1712675453598,-6389.74782867,0.00019542,2]
[321991996,1712675453607,-1764.087237,0.00019542,2]
[321991997,1712675453617,-233.30648504,0.00019542,2]
[321991998,1712675453627,-5357.36156544,0.00019542,2]
[321991999,1712675453638,-500.0,0.00019543,2]
[321992000,1712675453647,-500.0,0.00019543,2]
[321992001,1712675453656,-500.0,0.00019543,2]
[321992002,1712675453666,-500.0,0.00019543,2]
[321992003,1712675453675,-500.0,0.00019543,2]
[321992004,1712675453685,-500.0,0.00019543,2]
[321992005,1712675453694,-500.0,0.00019543,2]
[321992006,1712675453704,-500.0,0.00019543,2]
[321992007,1712675453714,-538.35,0.00019543,2]
[321992008,1712675453724,-500.0,0.00019543,2]
[321992009,1712675453733,-500.0,0.00019543,2]
[321992010,1712675453743,-500.0,0.00019543,2]
[321992011,1712675453753,-500.0,0.00019543,2]
[321992012,1712675453762,-500.0,0.00019543,2]
[321992013,1712675453772,-500.0,0.00019543,2]
[321992014,1712675453783,-500.0,0.00019543,2]
[321992015,1712675453793,-500.0,0.00019543,2]
[321992016,1712675453805,-500.0,0.00019543,2]
[321992017,1712675453821,-500.0,0.00019543,2]
[321992018,1712675453831,-500.0,0.00019543,2]
[321992019,1712675453839,-500.0,0.00019543,2]
[321992020,1712675453848,-500.0,0.00019543,2]
[321992021,1712675453861,-500.0,0.00019543,2]
[321992022,1712675453869,-500.0,0.00019543,2]
[321992023,1712675453878,-500.0,0.00019543,2]
[321992024,1712675453887,-500.0,0.00019543,2]
[321992025,1712675453897,-500.0,0.00019543,2]
[321992026,1712675453906,-883.62,0.00019543,2]
[321992027,1712675453915,-500.0,0.00019543,2]
[321992028,1712675453924,-500.0,0.00019543,2]
[321992029,1712675453932,-500.0,0.00019543,2]
[321992030,1712675453941,-594.41175081,0.00019543,2]
[321992031,1712675453950,-500.0,0.00019543,2]
[321992032,1712675453959,-500.0,0.00019543,2]
[321992033,1712675453968,-500.0,0.00019543,2]
[321992034,1712675453977,-500.0,0.00019543,2]
[321992035,1712675453986,-500.0,0.00019543,2]
[321992036,1712675453995,-500.0,0.00019543,2]
[321992037,1712675454003,-500.0,0.00019543,2]
[321992038,1712675454012,-647.07,0.00019543,2]
[321992039,1712675454021,-500.0,0.00019543,2]
[321992040,1712675454030,-537.84,0.00019543,2]
[321992041,1712675454039,-500.0,0.00019543,2]
[321992042,1712675454048,-500.0,0.00019543,2]
[321992043,1712675454056,-500.0,0.00019543,2]
[321992044,1712675454066,-500.0,0.00019543,2]
[321992045,1712675454078,-500.0,0.00019543,2]
[321992046,1712675454088,-500.0,0.00019543,2]
[321992047,1712675454100,-500.0,0.00019543,2]
[321992048,1712675454110,-500.0,0.00019543,2]
[321992049,1712675454119,-500.0,0.00019543,2]
[321992050,1712675454129,-500.0,0.00019543,2]
[321992051,1712675454139,-500.0,0.00019543,2]
[321992052,1712675454149,-500.0,0.00019543,2]
[321992053,1712675454158,-500.0,0.00019543,2]
[321992054,1712675454168,-500.0,0.00019543,2]
[321992055,1712675454177,-500.0,0.00019543,2]
[321992056,1712675454187,-500.0,0.00019543,2]
[321992057,1712675454195,-500.0,0.00019543,2]
[321992058,1712675454205,-194.13800483,0.00019543,2]
[321992059,1712675454215,-500.0,0.00019543,2]
[321992060,1712675454224,-500.0,0.00019543,2]
[321992061,1712675454234,-500.0,0.00019543,2]
[321992062,1712675454249,-500.0,0.00019543,2]
[321992063,1712675454258,-500.0,0.00019543,2]
[321992064,1712675454267,-500.0,0.00019543,2]
[321992065,1712675454276,-1007.19,0.00019543,2]
[321992066,1712675454288,-500.0,0.00019543,2]
[321992067,1712675454297,-500.0,0.00019543,2]
[321992068,1712675454311,-500.0,0.00019543,2]
[321992069,1712675454332,-634.32,0.00019543,2]
[321992070,1712675454343,-507.73,0.00019543,2]
[321992071,1712675454352,-500.0,0.00019543,2]
[321992072,1712675454362,-500.0,0.00019543,2]
[321992073,1712675454371,-500.0,0.00019543,2]
[321992074,1712675454380,-500.0,0.00019543,2]
[321992075,1712675454389,-500.0,0.00019543,2]
[321992076,1712675454399,-500.0,0.00019543,2]
[321992077,1712675454408,-500.0,0.00019543,2]
[321992078,1712675454417,-637.7,0.00019543,2]
[321992079,1712675454427,-500.0,0.00019543,2]
[321992080,1712675454436,-500.0,0.00019543,2]
[321992081,1712675454446,-230.68343788,0.00019543,2]
[321992082,1712675454455,-500.0,0.00019543,2]
[321992083,1712675454464,-509.62,0.00019543,2]
[321992084,1712675454474,-500.0,0.00019543,2]
[321992085,1712675454483,-500.0,0.00019543,2]
[321992086,1712675454493,-500.0,0.00019543,2]
[321992087,1712675454503,-500.0,0.00019543,2]
[321992088,1712675454512,-500.0,0.00019543,2]
[321992089,1712675454523,-500.0,0.00019543,2]
[321992090,1712675454532,-500.0,0.00019543,2]
[321992091,1712675454542,-501.96,0.00019543,2]
[321992092,1712675454552,-460.95133237,0.00019543,2]
[321992093,1712675454561,-309.65175607,0.00019543,2]
[321992094,1712675454571,-500.0,0.00019543,2]
[321992095,1712675454581,-500.0,0.00019543,2]
[321992096,1712675454590,-500.0,0.00019543,2]
[321992097,1712675454599,-500.0,0.00019543,2]
[321992098,1712675454609,-500.0,0.00019543,2]
[321992099,1712675454618,-500.0,0.00019543,2]
[321992100,1712675454627,-423.84847023,0.00019543,2]
[321992101,1712675454636,-500.0,0.00019543,2]
[321992102,1712675454645,-500.0,0.00019543,2]
[321992103,1712675454654,-500.0,0.00019543,2]
[321992104,1712675454663,-500.0,0.00019543,2]
[321992105,1712675454672,-500.0,0.00019543,2]
[321992106,1712675454681,-653.61,0.00019543,2]
[321992107,1712675454690,-500.0,0.00019543,2]
[321992108,1712675454699,-298.48457376,0.00019543,2]
[321992109,1712675454709,-500.0,0.00019543,2]
[321992110,1712675454718,-500.0,0.00019543,2]
[321992111,1712675454727,-633.82404482,0.00019543,2]
[321992112,1712675454736,-500.0,0.00019543,2]
[321992113,1712675454746,-500.0,0.00019543,2]
[321992114,1712675454756,-500.0,0.00019543,2]
[321992115,1712675454765,-500.0,0.00019545,2]
[321992116,1712675454775,-500.0,0.00019545,2]
[321992117,1712675454784,-500.0,0.00019545,2]
[321992118,1712675454794,-500.0,0.00019545,2]
[321992119,1712675454804,-1068.03,0.00019545,2]
[321992120,1712675454821,-500.0,0.00019545,2]
[321992121,1712675454831,-794.32,0.00019545,2]
[321992122,1712675454843,-561.23,0.00019545,2]
[321992123,1712675454853,-1098.95,0.00019545,2]
[321992124,1712675454864,-813.86,0.00019545,2]
[321992125,1712675454874,-597.11,0.00019545,2]
[321992126,1712675454884,-762.06,0.00019545,2]
[321992127,1712675454894,-795.9,0.00019545,2]
[321992128,1712675454905,-505.32,0.00019545,2]
[321992129,1712675454916,-1248.23,0.00019545,2]
[321992130,1712675454927,-307.78650724,0.00019545,2]
[321992131,1712675454937,-500.0,0.00019545,2]
[321992132,1712675454948,-500.0,0.00019545,2]
[321992133,1712675454959,-577.69,0.00019545,2]
[321992134,1712675454969,-500.0,0.00019545,2]
[321992135,1712675454980,-500.0,0.00019545,2]
[321992136,1712675454990,-675.95,0.00019545,2]
[321992137,1712675455001,-500.0,0.00019545,2]
[321992138,1712675455011,-1174.93,0.00019545,2]
[321992139,1712675455021,-1021.94,0.00019545,2]
[321992140,1712675455032,-500.0,0.00019545,2]
[321992141,1712675455042,-728.71,0.00019545,2]
[321992142,1712675455051,-500.0,0.00019545,2]
[321992143,1712675455067,-524.39,0.00019545,2]
[321992144,1712675455078,-711.1,0.00019545,2]
[321992145,1712675455089,-784.53,0.00019545,2]
[321992146,1712675455100,-500.0,0.00019545,2]
[321992147,1712675455110,-623.09,0.00019545,2]
[321992148,1712675455121,-500.0,0.00019545,2]
[321992149,1712675455131,-821.8,0.00019545,2]
[321992150,1712675455142,-1226.71,0.00019545,2]
[321992151,1712675455152,-576.22,0.00019545,2]
[321992152,1712675455162,-839.19,0.00019545,2]
[321992153,1712675455172,-739.95,0.00019545,2]
[321992154,1712675455182,-500.0,0.00019545,2]
[321992155,1712675455192,-571.55,0.00019545,2]
[321992156,1712675455202,-1083.7,0.00019545,2]
[321992157,1712675455212,-500.0,0.00019545,2]
[321992158,1712675455223,-628.35,0.00019545,2]
[321992159,1712675455233,-500.0,0.00019545,2]
[321992160,1712675455245,-637.35,0.00019545,2]
[321992161,1712675455256,-500.0,0.00019545,2]
[321992162,1712675455266,-500.0,0.00019545,2]
[321992163,1712675455276,-500.0,0.00019545,2]
[321992164,1712675455288,-500.0,0.00019545,2]
[321992165,1712675455299,-500.0,0.00019546,2]
[321992166,1712675455313,-736.85,0.00019546,2]
[321992167,1712675455326,-500.0,0.00019546,2]
[321992168,1712675455337,-500.0,0.00019546,2]
[321992169,1712675455348,-664.47,0.00019546,2]
[321992170,1712675455359,-637.78,0.00019546,2]
[321992171,1712675455370,-500.0,0.00019546,2]
[321992172,1712675455382,-500.0,0.00019546,2]
[321992173,1712675455393,-629.97,0.00019546,2]
[321992174,1712675455404,-586.78,0.00019546,2]
[321992175,1712675455416,-500.0,0.00019546,2]
[321992176,1712675455427,-500.0,0.00019546,2]
[321992177,1712675455437,-532.64,0.00019546,2]
[321992178,1712675455448,-748.51,0.00019546,2]
[321992179,1712675455458,-612.72,0.00019546,2]
[321992180,1712675455468,-913.1,0.00019546,2]
[321992181,1712675455480,-22824.27119912,0.0001961,2]
[321992182,1712675455491,-753.80125296,0.00019626,2]
[321992183,1712675455501,-187.52025476,0.00019626,2]
[321992184,1712675455512,-6159.28472412,0.00019626,2]
[321992185,1712675455522,-898.23994484,0.00019626,2]
[321992186,1712675455532,-150.0,0.00019628,4]
[321992187,1712675455542,-1534.35,0.00019725,2]
[321992188,1712675455552,-1336.28,0.00019725,2]
[321992189,1712675455567,-2070.02,0.00019725,2]
[321992190,1712675455578,-1580.17,0.00019725,2]
[321992191,1712675455589,-2297.53,0.00019725,2]
[321992192,1712675455600,-1944.97,0.00019725,2]
[321992193,1712675455610,-2041.2,0.00019725,2]
[321992194,1712675455622,-5297.5,0.00019725,2]
[321992195,1712675455633,-2372.74,0.00019725,2]
[321992196,1712675455643,-4831.15,0.00019725,2]
[321992197,1712675455653,-4693.0,0.00019725,2]
[321992198,1712675455664,-1447.71,0.00019725,2]
[321992199,1712675455674,-2061.16,0.00019725,2]
[321992200,1712675455686,-1622.72,0.00019725,2]
[321992201,1712675455696,-868.46871307,0.00019726,2]
[321992202,1712675455706,-796.42,0.00019726,2]
[321992203,1712675455716,-635.64,0.00019726,2]
[321992204,1712675455726,-508.37,0.00019726,2]
[321992205,1712675455737,-500.0,0.00019726,2]
[321992206,1712675455748,-195.38294729,0.00019726,2]
[321992207,1712675455758,-500.0,0.00019726,2]
[321992208,1712675455769,-500.0,0.00019726,2]
[321992209,1712675455780,-637.93,0.00019726,2]
[321992210,1712675455790,-500.0,0.00019726,2]
[321992211,1712675455801,-511.4,0.00019726,2]
[321992212,1712675455817,-500.0,0.00019726,2]
[321992213,1712675455828,-694.7,0.00019726,2]
[321992214,1712675455839,-556.79,0.00019726,2]
[321992215,1712675455850,-500.0,0.00019726,2]
[321992216,1712675455861,-704.4,0.00019726,2]
[321992217,1712675455872,-500.0,0.00019726,2]
[321992218,1712675455885,-500.0,0.00019726,2]
[321992219,1712675455896,-500.0,0.00019726,2]
[321992220,1712675455907,-500.0,0.00019726,2]
[321992221,1712675455918,-500.0,0.00019726,2]
[321992222,1712675455929,-500.0,0.00019726,2]
[321992223,1712675455940,-500.0,0.00019726,2]
[321992224,1712675455951,-544.04,0.00019726,2]
[321992225,1712675455962,-500.0,0.00019726,2]
[321992226,1712675455972,-500.0,0.00019726,2]
[321992227,1712675455983,-500.0,0.00019726,2]
[321992228,1712675455993,-595.51,0.00019726,2]
[321992229,1712675456005,-500.0,0.00019726,2]
[321992230,1712675456018,-500.0,0.00019726,2]
[321992231,1712675456028,-500.0,0.00019726,2]
[321992232,1712675456040,-500.0,0.00019726,2]
[321992233,1712675456050,-500.0,0.00019726,2]
[321992234,1712675456065,-656.73,0.00019726,2]
[321992235,1712675456076,-500.0,0.00019726,2]
[321992236,1712675456086,-534.98,0.00019726,2]
[321992237,1712675456098,-636.93,0.00019726,2]
[321992238,1712675456108,-500.0,0.00019726,2]
[321992239,1712675456119,-500.0,0.00019726,2]
[321992240,1712675456130,-500.0,0.00019726,2]
[321992241,1712675456141,-500.0,0.00019726,2]
[321992242,1712675456153,-500.0,0.00019726,2]
[321992243,1712675456163,-500.0,0.00019726,2]
[321992244,1712675456175,-699.79,0.00019726,2]
[321992245,1712675456186,-500.0,0.00019726,2]
[321992246,1712675456198,-500.0,0.00019726,2]
[321992247,1712675456209,-500.0,0.00019726,2]
[321992248,1712675456220,-573.36,0.00019726,2]
[321992249,1712675456231,-500.0,0.00019726,2]
[321992250,1712675456246,-754.07,0.00019726,2]
[321992251,1712675456257,-500.0,0.00019726,2]